Cogmind - Beta 13 @@@ ROGUE MODE // 2024.05.15 @ 06:38:37 Player: DeFlow Result: Destroyed by D-53 Grenadier with Mini Grenade Launcher Performance ------------- Evolutions (0) 0 Regions Visited (2) 400 Robots Destroyed (23) 115 Value Destroyed (294) 294 Prototype IDs (0) 0 Alien Tech Used (0) 0 Bonus (0) 0 TOTAL SCORE: 809 Bonus ------- None Cogmind --------- Core Integrity 0/250 Matter 293/300 Energy 84/100 System Corruption 0% Temperature Cool (20) Movement Rolling (115) Ox1 Location -10/Mines Parts ------- > --- POWER (1) -------- (None) > --- PROPULSION (2) --- Compact Wheel > --- UTILITY (2) ------ Large Storage Unit Targeting Computer > --- WEAPON (2) ------- Light Assault Rifle > --- INVENTORY (15) --- Light Ion Engine Light Treads Light Treads Light Treads Large Storage Unit Compact Matter Pod (150) Sensor Array Targeting Computer ECM Suite EM Pulse Gun Medium Laser Medium Laser Medium Laser Grenade Launcher Peak State ------------ > --- POWER ------------ Ion Engine > --- PROPULSION ------- Light Treads Light Treads > --- UTILITY ---------- Heat Sink Large Storage Unit > --- WEAPON ----------- Medium Laser Light Assault Rifle > --- INVENTORY -------- Light Ion Engine Light Treads Compact Wheel Large Storage Unit Targeting Computer ECM Suite EM Pulse Gun Medium Laser Medium Laser Light Assault Rifle [Rating: 8] Favorites ----------- Power Ion Engine Engine Ion Engine Propulsion Light Treads Treads Light Treads Wheel Compact Wheel Utility Large Storage Unit Device Heat Sink Storage Large Storage Unit Processor Targeting Computer Weapon Medium Laser Energy Gun Medium Laser Ballistic Gun Light Assault Rifle Launcher Grenade Launcher Build | -11 -10 -10 ------- Run | Yrd Mat Min Slots Evolved . | . . . Power . | . . . Propulsion . | . . . Utility . | . . . Weapon . | . . . Parts Attached 18 | 6 8 4 Power 1 | 1 . . Engine 1 | 1 . . Core . | . . . Reactor . | . . . Propulsion 6 | 2 4 . Treads 3 | 1 2 . Leg . | . . . Wheel 3 | 1 2 . Hover . | . . . Flight . | . . . Utility 5 | 1 4 . Device 1 | . 1 . Storage 3 | 1 2 . Processor 1 | . 1 . Hackware . | . . . Protection . | . . . Artifact . | . . . Weapon 6 | 2 . 4 Energy Gun 1 | 1 . . Energy Cannon . | . . . Ballistic Gun 4 | 1 . 3 Ballistic Cannon . | . . . Launcher 1 | . . 1 Special Weapon . | . . . Impact Weapon . | . . . Slashing Weapon . | . . . Piercing Weapon . | . . . Special Melee Weapon . | . . . Unidentified Prototypes . | . . . Parts Lost 4 | . . 4 Power 1 | . . 1 Propulsion 1 | . . 1 Utility . | . . . Weapon 2 | . . 2 Highest Loss Streak 4 | . . 4 To Critical Strikes . | . . . Average Slot Usage (%) 97 | . 97 98 Engine 13 | . 14 13 Treads 19 | . 22 13 Wheel 8 | . 5 14 Device 4 | . 6 . Storage 14 | . 14 14 Processor 8 | . 5 14 Energy Gun 14 | . 14 14 Ballistic Gun 13 | . 14 13 Naked Turns . | . . . Heaviest Build 30 | 13 29 30 Greatest Support 40 | 16 40 16 Greatest Overweight (x) 1 | . 1 1 Average Overweight (x) . | . . 1 Largest Inventory Capacity 15 | 8 15 15 Average Capacity 14 | 7 14 15 Most Carried 15 | 3 15 15 Average Carried 10 | 2 9 14 Final Capacity 15 | 8 15 15 Final Carried 15 | 3 15 14 Class Distribution -------------------- 100% | Mutant Dominant Class ---------------- Mutant | -10/Materials Mutant | -10/Mines Resources | -11 -10 -10 ----------- Run | Yrd Mat Min Matter Collected 461 | 193 202 66 Remotely . | . . . Salvage Created 609 | . 554 55 Parts 47 | . 36 11 Haulers Intercepted 2 | . 2 . Recyclers Shooed 2 | . 1 1 Parts Field Recycled . | . . . Retrieved Matter . | . . . Parts Self-Destructed . | . . . Prevented . | . . . Kills | -11 -10 -10 ------- Run | Yrd Mat Min Combat Hostiles Destroyed 12 | . 9 3 Guns 10 | . 9 1 AOE 2 | . . 2 Classes Destroyed 9 | . 8 1 Worker 1 | . 1 . Builder 2 | . . 2 Tunneler 1 | . 1 . Hauler 2 | . 2 . Recycler 1 | . 1 . Mechanic 1 | . 1 . Watcher 3 | . 3 . Swarmer 9 | . 6 3 Grunt 3 | . 3 . Best Kill Streak 4 | . 4 3 Combat Bots Only 3 | . 3 2 Max Kills in Single Turn 2 | . 2 1 Gunslinging 1 | . 1 . Exploded 1 | . . 1 Melee . | . . . Uniques/NPCs Destroyed . | . . . Combat | -11 -10 -10 -------- Run | Yrd Mat Min Hostile Shots Fired 60 | . 38 22 Missed 15 | . 11 4 Damage Taken 758 | . 272 486 Core 253 | . 57 196 Absorbed by Shields . | . . . Core Remaining (%) 100 | 100 . . Volleys Fired 69 | . 55 14 Largest 2 | . 2 2 Hottest 70 | . 70 70 Shots Fired 136 | . 110 26 Gun 134 | . 110 24 Cannon . | . . . Launcher 2 | . . 2 Special . | . . . Kinetic 67 | . 55 12 Thermal 67 | . 55 12 Explosive 2 | . . 2 Electromagnetic . | . . . Robot Hit Streak 11 | . 11 7 Robot Miss Streak 6 | . 6 3 Penetration Max . | . . . Secondary Targets 3 | . 3 . Max Gunslinging Chain 1 | . 1 . Shots Hit Robots 79 | . 63 16 Core Hits 39 | . 31 8 Critical Kills . | . . . Critical Parts Destroyed . | . . . Critical Strikes 4 | . 4 . Burn 4 | . 4 . Melee Attacks . | . . . Impact . | . . . Slashing . | . . . Piercing . | . . . Sneak Attacks . | . . . Combat Hostiles . | . . . Follow-up Attacks . | . . . Damage Inflicted 1020 | . 666 354 Guns 856 | . 666 190 Cannons . | . . . Explosions 164 | . . 164 Melee . | . . . Ramming . | . . . Kinetic 371 | . 302 69 Thermal 485 | . 364 121 Explosive 164 | . . 164 Electromagnetic . | . . . Impact . | . . . Slashing . | . . . Piercing . | . . . Highest Corruption . | . . . Average Corruption . | . . . Corruption Purged . | . . . Corruption Blocked . | . . . Overload Shots . | . . . Overflow Damage 9 | . . 9 Projectiles . | . . . Explosions 9 | . . 9 Melee . | . . . Knockbacks . | . . . Impact . | . . . Kinetic . | . . . Secondary . | . . . Self-Inflicted Damage . | . . . Shots . | . . . Rammed . | . . . Targets Rammed . | . . . Kicked . | . . . Crushed . | . . . Highest Temperature 158 | . 158 70 Average Temperature 46 | . 52 18 Received Heat Transfer 78 | . 78 . Siege Activations . | . . . Robots Corrupted . | . . . Combat Hostiles . | . . . Parts Fried . | . . . Impact Corruptions . | . . . Robots Melted . | . . . Combat Hostiles . | . . . Parts Melted 2 | . 2 . Heat Transferred 1739 | . 1369 370 Parts Sabotaged . | . . . Parts Stolen . | . . . Parts Stripped . | . . . Power Chain Reactions . | . . . Alert | -11 -10 -10 ------- Run | Yrd Mat Min Peak Influence 174 | . 174 118 Initial 12 | . . 12 Average 60 | . 56 75 Maximum Alert Level . | . . . Low Security (%) 100 | 100 100 100 Level 1 . | . . . Level 2 . | . . . Level 3 . | . . . Level 4 . | . . . Level 5 . | . . . High Security . | . . . Max Security . | . . . Squads Dispatched . | . . . Investigation . | . . . Extermination . | . . . Reinforcement . | . . . Assault . | . . . Garrison . | . . . Intercept . | . . . Searches Triggered . | . . . Construction Impeded . | . . . Haulers Reinforced . | . . . Active Scanning Responses . | . . . Cargo Convoy Interrupts . | . . . Stealth | -11 -10 -10 --------- Run | Yrd Mat Min Distress Signals . | . . . Communications Jammed . | . . . Distress Signals . | . . . Times Spotted 25 | . 19 6 Peak Tracking Total 4 | . 4 3 Tactical Retreats 1 | . . 1 Traps | -11 -10 -10 ------- Run | Yrd Mat Min Traps Triggered . | . . . Indirectly . | . . . Trap Hack Attempts . | . . . Triggered . | . . . Disarmed . | . . . Reprogrammed . | . . . Reused . | . . . Traps Extracted . | . . . Installed . | . . . Triggered . | . . . Machines | -11 -10 -10 ---------- Run | Yrd Mat Min Machines Disabled . | . . . Max in Single Turn . | . . . Machines Repaired . | . . . Machines Dismantled . | . . . Machines Sabotaged . | . . . Overloaded Fab Kills . | . . . Hacking | -11 -10 -10 --------- Run | Yrd Mat Min Machines Accessed 11 | . 11 . Terminals 8 | . 8 . Fabricators . | . . . Repair Stations 1 | . 1 . Recycling Units 2 | . 2 . Scanalyzers . | . . . Garrison Access . | . . . Total Hacks 22 | . 22 . Successful 8 | . 8 . Failed 14 | . 14 . Catastrophic 3 | . 3 . Database Lockouts . | . . . Manual 3 | . 3 . Terminals 18 | . 18 . Fabricators . | . . . Repair Stations 2 | . 2 . Recycling Units 2 | . 2 . Scanalyzers . | . . . Garrison Access . | . . . Terminal Hacks 6 | . 6 . Robot Analysis 3 | . 3 . Recycling Unit Index 1 | . 1 . Dispatch Records 1 | . 1 . Zone Layout 1 | . 1 . Fabricator Hacks . | . . . Repair Station Hacks . | . . . Recycling Unit Hacks 2 | . 2 . Report Inventory 2 | . 2 . Scanalyzer . | . . . Garrison Access Hacks . | . . . Unauthorized Hacks . | . . . Terminals . | . . . Fabricators . | . . . Repair Stations . | . . . Recycling Units . | . . . Scanalyzers . | . . . Garrison Access . | . . . Data Cores Recovered . | . . . Used . | . . . Hacking Detections 8 | . 8 . Full Trace Events . | . . . Feedback Events . | . . . Feedback Blocked . | . . . Robot Schematics Acquired . | . . . Robots Built . | . . . Authchips . | . . . Time . | . . . Total Robot Build Rating . | . . . Part Schematics Acquired . | . . . Parts Built . | . . . Authchips . | . . . Time . | . . . Total Part Build Rating . | . . . Parts Repaired . | . . . Time . | . . . Parts Recycled . | . . . Recycled Matter . | . . . Retrieved Matter . | . . . Retrieved Components . | . . . Parts Scanalyzed . | . . . Part Schematics Acquired . | . . . Parts Damaged . | . . . Bothacking | -11 -10 -10 ------------ Run | Yrd Mat Min Used RIF Installer . | . . . Robots Hacked . | . . . Non-combat . | . . . Combat . | . . . Robot Hacks Applied . | . . . Relay Couplers Released . | . . . Fabnet Peak Effective % . | . . . Robots Rewired . | . . . Allies Hacked . | . . . Hacks Repelled . | . . . Allies | -11 -10 -10 -------- Run | Yrd Mat Min Total Allies . | . . . Largest Group . | . . . Highest-Rated Group . | . . . Highest-Rated Ally . | . . . Total Orders . | . . . Ally Attacks . | . . . Total Damage . | . . . Kills . | . . . Allies Corrupted . | . . . Allies Melted . | . . . Intel | -11 -10 -10 ------- Run | Yrd Mat Min Robot Analysis Total 3 | . 3 . Derelict Logs Recovered 1 | . . 1 Drone Launches . | . . . Drone Recoveries . | . . . Exploration | -11 -10 -10 ------------- Run | Yrd Mat Min Turns Passed 1702 | 50 1128 524 Spaces Moved 1077 | 40 685 352 Core 2 | 2 . . Treads 312 | . 312 . Legs . | . . . Wheels 763 | 38 373 352 Hover . | . . . Flight . | . . . Fastest Speed 50 | 50 100 115 Average Speed 126 | 97 133 115 Slowest Speed 160 | 100 160 115 Overloaded Moves . | . . . Propulsion Burnouts . | . . . Robots Hopped . | . . . Cave-ins Triggered . | . . . Exploration Rate (%) 61 | 3 97 84 Regions Visited 2 Branch Regions 1 Pre-discovered Areas . | . . . Known Exits Taken . | . . . Unknown Exits Taken 2 | 1 1 . Scrap Searched 3 | . . 3 Spaces Dug . | . . . Terrain Destroyed 17 | . . 17 Melee . | . . . Projectile . | . . . AOE 17 | . . 17 Terrain Rammed . | . . . Walls Destroyed . | . . . Machines Disabled . | . . . Actions | -11 -10 -10 --------- Run | Yrd Mat Min Total 1293 | 48 798 447 Wait 104 | . 32 72 Move 1075 | 39 684 352 Hop . | . . . Pick Up 19 | 3 14 2 Fast Attach 9 | 6 2 1 Attach 2 | . 1 1 Detach 2 | . 2 . Swap 7 | . 5 2 Drop 6 | . 3 3 Fire 69 | . 55 14 Melee . | . . . Ram . | . . . Kick . | . . . Crush . | . . . Escape Stasis . | . . . Rewire . | . . . Trap . | . . . Miscellaneous . | . . . Route ------- -11/Scrapyard -10/Materials (discovered 4 exits: [*Mat x3] / [*Min]) -10/Mines (discovered 2 exits: [*Mat x2]) History --------- Turn | Location | Event 18 | -11/Scrapyard | Discovered new exit (range 16) 51 | -11/Scrapyard | Entered Materials 306 | -10/Materials | Build established: Mutant 376 | -10/Materials | Discovered new exit (range 13) 519 | -10/Materials | Discovered new exit (range 16) 771 | -10/Materials | Discovered new exit (range 15) 923 | -10/Materials | Discovered new exit (range 10) 1179 | -10/Materials | Entered Mines 1190 | -10/Mines | YI-UF0 nonchalantly dropped a Grenade Launcher on the ground 1285 | -10/Mines | Discovered new exit (range 5) 1407 | -10/Mines | Assembled infested the area 1597 | -10/Mines | Learned Materials interactive machine intel 1664 | -10/Mines | Discovered new exit (range 14) 1692 | -10/Mines | Core integrity fell below 50% 1702 | -10/Mines | Core integrity fell below 20% 1703 | -10/Mines | Destroyed by D-53 Grenadier with Mini Grenade Launcher Last Messages --------------- 01617_ Acquired Com. Matter Pod. 01642_ T-07 Excavator is excavating. 01664_ K-01 Serf collects debris. 01664_ EXIT=FOUND 01665_ Searching scrap... 01665_ Found Welding Torch. 01665_ Found 34 Matter. 01667_ K-01 Serf collects debris. 01680_ The unstable cave ceiling collapses. 01682_ K-01 Serf collects debris. 01689_ Acquired 3 matter. 01693_ Ion Engine destroyed. 01693_ Lgt. Treads destroyed. 01693_ K-01 Serf destroyed. 01694_ K-01 Serf collects debris. 01697_ The unstable cave ceiling collapses. 01698_ Assault Rifle destroyed. 01699_ K-01 Serf destroyed. 01702_ Med. Laser destroyed. 01703_ The unstable cave ceiling collapses. Map ----- +----------------------------------------------------+ | ????????????????????????????# #???????????????? | | ????????????????????????????# #???????????????? | | ???????????????????????????## ##??????????????? | | ???????????????###?????????# #??????????????? | | ??????????????? ###?????# #######????????? | | #?????????????? ????# #????????? | | #????????????? ???## #### #????????? | | ###??????????? ##?# " #??# #????????? | | #??????????? ## % #??# #????????? | | ???????# # ##??# #????????? | | #?????????# "%" #??# #????????? | | ##???????# " ##??# #????????? | | ? ##?????# ## # #??# #????????? | | ?? ##?????????# # # ## ####??# ######???? | | ???###??????????????# % ?????# ## ##??? | | ????????????????????###? ?????# #??? | | ???????????????????????## ####??#### #??? | | ????????????????????????# #????## # ##??? | | ????????????????????????# #???## ## ##???? | | ????????????????????????# #??## ### #????? | | ?????????????????#????### #### """ ##?# #????? | | ?????????????????# #### """ #??# ###??? | | ?????????????????# d d """ ##?# #??? | | ?????????????????#### ###### #??? | | ?????????????????#### ## #???# #??? | | ?????????????????# @ ### #?### ##?? | | ?????????????????# ## #?## #### ! #?? | | ????????????????????# #??## ## #?? | | ??????????????####??# # ##???# # !!! #?? | | ?????????????## ### #????##### ! #?? | | ?????????????# % = #????????# ! #?? | | ?????????????# % % #????????# !!! #?? | | ?????????????# % #????????# #?? | | ?????????????# " #????????### #?? | | ????????????# " #??????????# #?? | | ????????????# < "" #??????????# #?? | | ????????????# # #??????????######?? | | ????????????# # #########?????????????????? | | ????????????# ####??????????????????????????? | | ????????????####???????????????????????????????? | | | | | | | | | | | | | | | | | | | | | +----------------------------------------------------+ Best States ------------- Heat Dissipation 35 Energy Generation 10 Energy Capacity 250 Matter Stores 300 Matter Capacity 300 Sight Range 16 Terrain Scan Density 10 Evasion (%) 40 Targeting Accuracy 5 Recoil Reduction 2 Item Schematics ----------------- None Robot Schematics ------------------ None Fabricated ------------ Nothing Alien Tech Used ----------------- None Achievements -------------- None Challenges ------------ None Game ------ Seed ThermicMolecularBattery Manual? 0 Play Time 00:19:38 Cumulative 18.3 hours Start 2024.05.15 @ 06:19:16 End 2024.05.15 @ 06:38:37 Sessions 1 Manual Loads 0 Difficulty Rogue Special Mode None Game No. 11 Rogue 3 Adventurer 8 Explorer 0 Win Type - Total 1 Types 1/0/0/0/0/0/0/0/0 Lore% 21 Gallery% 24 Achievement% 22 Wizard Run 0 Options --------- Layout 0 ASCII 0 Keyboard 1 Movement Numpad Keybinds 0 Fullscreen 2 Font 24/Smallcaps Map View 76x50 Zoom Use 0% Tactical HUD 1 Map Filters NONE Filters NONE Steam 1 RUN: c8670460-cdff-4246-a1bd-bfadcd53fa76